bitfinex/quotes_BTCUSD_20250618
["timestamp","ask_amount","ask_price","bid_price","bid_amount"]
[1750276887920,0.40702685,104030.0,104020.0,0.23072299]
[1750276888762,0.36821227,104030.0,104020.0,0.32696475]
[1750276888966,0.37782441,104030.0,104020.0,0.32696475]
[1750276889177,0.37782432,104030.0,104020.0,0.38926475]
[1750276889393,0.38743646,104030.0,104020.0,0.38926475]
[1750276889592,0.37782432,104030.0,104020.0,0.38926475]
[1750276890247,0.38743656,104030.0,104020.0,0.38926475]
[1750276891069,0.39957129,104030.0,104020.0,0.38926475]
[1750276891525,0.40918353,104030.0,104020.0,0.38926475]
[1750276891718,0.39957129,104030.0,104020.0,0.38926475]
[1750276891928,0.40918362,104030.0,104020.0,0.38926475]
[1750276892341,0.60143576,104030.0,104020.0,0.15854176]
[1750276892554,0.34961335,104020.0,104010.0,0.36586277]
[1750276892789,0.36883958,104020.0,104010.0,0.48133243]
[1750276892969,0.36883903,104020.0,104010.0,0.48133243]
[1750276893181,0.58033625,104020.0,104010.0,0.48133243]
[1750276893802,0.58033625,104020.0,104010.0,0.47171862]
[1750276894048,0.5514975,104020.0,104010.0,0.47171862]
[1750276894430,0.5514975,104020.0,104010.0,0.48133252]
[1750276894624,0.5514975,104020.0,104010.0,0.48333252]
[1750276894823,0.56044061,104020.0,104010.0,0.47371862]
[1750276895023,0.56044061,104020.0,104010.0,0.48333261]
[1750276895226,0.02816953,104020.0,104010.0,0.32898642]
[1750276895434,0.02816953,104020.0,104010.0,0.49290642]
[1750276895641,0.02883986,104020.0,104010.0,0.49290642]
[1750276895843,0.02883986,104020.0,104010.0,0.49490642]
[1750276896048,0.22111057,104020.0,104010.0,0.49490642]
[1750276896252,0.23006142,104020.0,104010.0,0.49490642]
[1750276896454,0.02817727,104020.0,104010.0,0.49490642]
[1750276897161,0.03778996,104020.0,104010.0,0.49490642]
[1750276897532,0.01856364,104020.0,104010.0,0.33098642]
[1750276897732,0.04740284,104020.0,104010.0,0.55790642]
[1750276897940,0.05701619,104020.0,104010.0,0.55790642]
[1750276898142,0.03845199,104020.0,104010.0,0.55790642]
[1750276898479,0.02883874,104020.0,104010.0,0.55790642]
[1750276898680,0.5852492,104030.0,104020.0,0.22111038]
[1750276898681,0.57327367,104030.0,104020.0,0.22111038]
[1750276898882,0.57327367,104030.0,104020.0,0.21149731]
[1750276899291,0.57327367,104030.0,104020.0,0.22111038]
[1750276899698,0.58288628,104030.0,104020.0,0.22111038]
[1750276899924,0.59249852,104030.0,104020.0,0.23072336]
[1750276900251,0.59249852,104030.0,104020.0,0.21149731]
[1750276900465,0.59249852,104030.0,104020.0,0.22111029]
[1750276901080,0.60144948,104030.0,104020.0,0.22111029]
[1750276901926,0.60144948,104030.0,104020.0,0.21149731]
[1750276902264,0.37074429,104030.0,104020.0,0.30773907]
[1750276902469,0.02179697,104030.0,104020.0,0.38275195]
[1750276902911,0.02179697,104030.0,104020.0,0.3972928]
[1750276903099,5e-05,104030.0,104020.0,0.4422128]
[1750276903329,5e-05,104030.0,104020.0,0.84754683]
[1750276903513,5e-05,104030.0,104020.0,0.7561328]
[1750276904309,5e-05,104030.0,104020.0,0.7581328]
[1750276904712,5e-05,104030.0,104020.0,0.7561328]
[1750276905124,5e-05,104030.0,104020.0,0.7581328]
[1750276905418,5e-05,104030.0,104020.0,0.7601328]
[1750276905623,0.00505,104030.0,104020.0,0.7601328]
[1750276905787,0.00505,104030.0,104020.0,0.7561328]
[1750276905983,0.00805,104030.0,104020.0,0.7561328]
[1750276906410,0.00805,104030.0,104020.0,0.6061328]
[1750276906752,0.00805,104030.0,104020.0,0.6058928]
[1750276908822,0.00805,104030.0,104020.0,0.90614683]
[1750276911140,0.00805,104030.0,104020.0,0.6058928]
[1750276913215,0.00805,104030.0,104020.0,0.90614683]
[1750276913839,0.00805,104030.0,104020.0,0.6058928]
[1750276914463,0.00805,104030.0,104020.0,0.6058528]
[1750276915088,0.00805,104030.0,104020.0,0.3972928]
[1750276915291,0.00805,104030.0,104020.0,0.6058528]
[1750276915500,0.00805,104030.0,104020.0,0.3972928]
[1750276915728,0.00805,104030.0,104020.0,0.6058528]
[1750276916148,0.56950066,104060.0,104050.0,0.20182604]
[1750276916352,0.56950066,104060.0,104050.0,0.36566604]
[1750276916791,0.56950066,104060.0,104050.0,0.17345076]
[1750276917192,0.56950066,104060.0,104050.0,0.16384]
[1750276917418,0.60784656,104060.0,104050.0,0.16598356]
[1750276917828,0.60784656,104060.0,104050.0,0.16798356]
[1750276918832,0.60784656,104060.0,104050.0,0.36980951]
[1750276919034,0.60784656,104060.0,104050.0,0.37941999]
[1750276919236,0.53119251,104060.0,104050.0,0.37941999]
[1750276919661,0.53119251,104060.0,104050.0,0.38903038]
[1750276920244,0.54080207,104060.0,104050.0,0.39864058]
[1750276920448,0.27409403,104060.0,104050.0,0.50449245]
[1750276920653,0.28370331,104060.0,104050.0,0.50449245]
[1750276921177,0.54801032,104060.0,104050.0,0.19635884]
[1750276921330,0.52879157,104060.0,104050.0,0.19635884]
[1750276921541,0.52879157,104060.0,104050.0,0.2059696]
[1750276921751,0.51918183,104060.0,104050.0,0.01375432]
[1750276921949,0.51918183,104060.0,104050.0,0.00414356]
[1750276922150,0.51918183,104060.0,104050.0,0.19635884]
[1750276922353,0.51918183,104060.0,104050.0,0.00414356]
[1750276922965,0.37991085,104040.0,104030.0,0.38487247]
[1750276923195,0.61335573,104040.0,104030.0,0.22107247]
[1750276923408,0.61335573,104040.0,104030.0,0.38487266]
[1750276923606,0.22108912,104030.0,104020.0,0.22111029]
[1750276923869,0.28338912,104030.0,104020.0,0.48115205]
[1750276924460,0.2930009,104030.0,104020.0,0.48115205]
[1750276924662,0.10074867,104030.0,104020.0,0.49076493]
[1750276924868,0.10074867,104030.0,104020.0,0.49676493]
[1750276925402,0.62338968,104030.0,104020.0,0.20227071]
[1750276925623,0.61377735,104030.0,104020.0,0.01]
[1750276925829,0.61377735,104030.0,104020.0,0.1738]
[1750276926036,0.61377735,104030.0,104020.0,0.36607071]
[1750276926236,0.61377735,104030.0,104020.0,0.37568424]
[1750276926772,0.61377735,104030.0,104020.0,0.01]
[1750276928187,0.61377698,104030.0,104020.0,0.19827071]
[1750276928412,0.58197735,104030.0,104020.0,0.006]
[1750276928614,0.35922633,104020.0,104010.0,0.3753148]
[1750276928822,0.34961298,104020.0,104010.0,0.47155656]
[1750276929048,0.35922586,104020.0,104010.0,0.47155656]
[1750276929253,0.36883893,104020.0,104010.0,0.53625656]
[1750276929500,0.37845218,104020.0,104010.0,0.53625656]
[1750276929955,0.37892459,104020.0,104010.0,0.53625656]
[1750276930143,0.36931134,104020.0,104010.0,0.53625656]
[1750276930992,0.37892459,104020.0,104010.0,0.53825656]
[1750276931410,0.34047241,104020.0,104010.0,0.53825656]
[1750276931618,0.3500852,104020.0,104010.0,0.54125656]
[1750276932061,0.36931124,104020.0,104010.0,0.54125656]
[1750276932696,0.35953504,104020.0,104010.0,0.54125656]
[1750276932922,0.3691482,104020.0,104010.0,0.54125656]
[1750276933124,0.37876155,104020.0,104010.0,0.54125656]
[1750276933328,0.00047241,104020.0,104010.0,0.54125656]
[1750276933781,0.01008529,104020.0,104010.0,0.54125656]
[1750276933988,0.00047241,104020.0,104010.0,0.54125656]
[1750276934185,0.0100852,104020.0,104010.0,0.54125656]
[1750276934658,0.35969818,104020.0,104010.0,0.54125656]
[1750276934851,0.35969808,104020.0,104010.0,0.54125656]
[1750276935007,0.34047241,104020.0,104010.0,0.54125656]
[1750276935414,0.35969818,104020.0,104010.0,0.54125656]
[1750276935808,0.3500852,104020.0,104010.0,0.54125656]
[1750276936029,0.01922577,104020.0,104010.0,0.54125656]
[1750276936505,0.02883893,104020.0,104010.0,0.54125656]
[1750276936705,0.01922577,104020.0,104010.0,0.54125656]
[1750276936915,0.02883893,104020.0,104010.0,0.54125656]
[1750276937123,0.01922577,104020.0,104010.0,0.54125656]
[1750276937554,0.02883884,104020.0,104010.0,0.54125656]
[1750276937960,0.36883884,104020.0,104010.0,0.54125656]
[1750276939013,0.35922577,104020.0,104010.0,0.54125656]
[1750276939446,0.34961279,104020.0,104010.0,0.54125656]
[1750276939703,0.35922577,104020.0,104010.0,0.54125656]
[1750276939935,0.35922567,104020.0,104010.0,0.54125656]
[1750276941645,0.35922586,104020.0,104010.0,0.54125656]
[1750276941986,0.36883902,104020.0,104010.0,0.54125656]
[1750276942181,0.34961279,104020.0,104010.0,0.54125656]
[1750276943037,0.35922567,104020.0,104010.0,0.54125656]
[1750276943713,0.36883874,104020.0,104010.0,0.54125656]
[1750276945576,0.37845199,104020.0,104010.0,0.50965656]
[1750276945776,0.36883874,104020.0,104010.0,0.50965656]
[1750276946493,0.35922567,104020.0,104010.0,0.50965656]
[1750276947129,0.34961279,104020.0,104010.0,0.50965656]
[1750276947334,0.34961205,104030.0,104020.0,0.22111019]
[1750276947538,0.35922365,104030.0,104020.0,0.38310084]
[1750276947711,0.34,104030.0,104020.0,0.38310084]
[1750276948132,0.095382,104050.0,104020.0,0.65186136]
[1750276948332,0.2305427,104060.0,104050.0,0.21143634]
[1750276948333,0.31296191,104060.0,104050.0,0.21143634]
[1750276948540,0.31296191,104060.0,104050.0,0.36558595]
[1750276948541,0.32257165,104060.0,104050.0,0.36558595]
[1750276948735,0.66257165,104060.0,104050.0,0.37519652]
[1750276949079,0.66257165,104060.0,104050.0,0.39441739]
[1750276949295,0.05756474,104060.0,104050.0,0.39441739]
[1750276949508,0.05756474,104060.0,104050.0,0.50026926]
[1750276949732,0.06717374,104060.0,104050.0,0.50026926]
[1750276949934,0.40717374,104060.0,104050.0,0.50026926]
[1750276950558,0.40717365,104060.0,104050.0,0.50026926]
[1750276950768,0.3879549,104060.0,104050.0,0.56326926]
[1750276950980,0.39756409,104060.0,104050.0,0.56326926]
[1750276951598,0.41678293,104060.0,104050.0,0.53256926]
[1750276951809,0.41678293,104060.0,104050.0,0.53456926]
[1750276952024,0.40717337,104060.0,104050.0,0.53556926]
[1750276952220,0.41678284,104060.0,104050.0,0.53556926]
[1750276952755,0.60898029,104060.0,104050.0,0.49365915]
[1750276952930,0.60898029,104060.0,104050.0,0.50326945]
[1750276953153,0.41678349,104060.0,104050.0,0.50326889]
[1750276953282,0.60898029,104060.0,104050.0,0.49365878]
[1750276953660,0.61859013,104060.0,104050.0,0.49365878]
[1750276953978,0.41551337,104060.0,104050.0,0.50110898]
[1750276954601,0.40590418,104060.0,104050.0,0.31812848]
[1750276954875,0.40590418,104060.0,104050.0,0.48184848]
[1750276955289,0.40590418,104060.0,104050.0,0.29890761]
[1750276955504,0.40590418,104060.0,104050.0,0.47223809]
[1750276955713,0.44668543,104060.0,104050.0,0.26296176]
[1750276955931,0.48504331,104060.0,104050.0,0.16672]
[1750276957116,0.48504331,104060.0,104050.0,0.003]
[1750276957340,0.56106769,104040.0,104030.0,0.2210804]
[1750276957525,0.56106833,104040.0,104030.0,0.31732216]
[1750276957775,0.56106833,104040.0,104030.0,0.48104216]
[1750276958387,0.5610676,104040.0,104030.0,0.49065412]
[1750276958636,0.58029087,104040.0,104030.0,0.49065412]
[1750276958875,0.57067983,104040.0,104030.0,0.48304216]
[1750276959287,0.57067983,104040.0,104030.0,0.49365421]
[1750276959473,0.57067983,104040.0,104030.0,0.48404216]
[1750276960128,0.57067983,104040.0,104030.0,0.49365421]
[1750276961226,0.57067983,104040.0,104030.0,0.48404216]
[1750276961434,0.57067983,104040.0,104030.0,0.49365421]
[1750276961643,0.3688344,104040.0,104030.0,0.50326617]
[1750276962062,0.35922281,104040.0,104030.0,0.50326617]
[1750276962724,0.57067983,104040.0,104030.0,0.49365421]
[1750276963145,0.57067983,104040.0,104030.0,0.50326617]
[1750276963559,0.57067983,104040.0,104030.0,0.49365421]
[1750276963775,0.3688344,104040.0,104030.0,0.50326617]
[1750276963980,0.36883385,104040.0,104030.0,0.50326617]
[1750276964193,0.57067928,104040.0,104030.0,0.49365421]
[1750276964606,0.57067928,104040.0,104030.0,0.50326617]
[1750276964817,0.57067928,104040.0,104030.0,0.3010976]
[1750276965049,0.59326824,104040.0,104030.0,0.36858465]
[1750276965248,0.59326824,104040.0,104030.0,0.38780959]
[1750276966090,0.58365693,104040.0,104030.0,0.38780959]
[1750276966313,0.57404543,104040.0,104030.0,0.35897223]
[1750276966589,0.57404543,104040.0,104030.0,0.20486484]
[1750276966791,0.60614543,104040.0,104030.0,0.003]
[1750276966997,0.60614543,104040.0,104030.0,0.16668]
[1750276967421,0.60614543,104040.0,104030.0,0.36854474]
[1750276967649,0.59653375,104040.0,104030.0,0.35893223]
[1750276967862,0.59653375,104040.0,104030.0,0.36854484]
[1750276968938,0.59653375,104040.0,104030.0,0.37815735]
[1750276969367,0.59653375,104040.0,104030.0,0.36854484]
[1750276970223,0.59653375,104040.0,104030.0,0.37815735]
[1750276970856,0.59653375,104040.0,104030.0,0.36854484]
[1750276971083,0.59653375,104040.0,104030.0,0.17629261]
[1750276971297,0.59653375,104040.0,104030.0,0.16668]
[1750276971920,0.59653375,104040.0,104030.0,0.003]
[1750276973640,0.59653375,104040.0,104020.0,0.37522622]
[1750276973841,0.20186474,104030.0,104020.0,0.38483975]
[1750276974087,0.20186474,104030.0,104020.0,0.3752264]
[1750276974294,0.23226474,104030.0,104020.0,0.16372889]
[1750276974938,0.20186474,104030.0,104020.0,0.3559996]
[1750276975169,0.22208894,104030.0,104020.0,0.38483936]
[1750276975376,0.23170155,104030.0,104020.0,0.38483954]
[1750276976006,0.23170155,104030.0,104020.0,0.39445261]
[1750276976231,0.02983653,104030.0,104020.0,0.40406549]
[1750276976466,0.02022402,104030.0,104020.0,0.56210725]
[1750276976710,0.2220883,104030.0,104020.0,0.55249437]
[1750276976934,0.23170146,104030.0,104020.0,0.47146824]
[1750276977343,0.23070146,104030.0,104020.0,0.48108149]
[1750276977585,0.23070146,104030.0,104020.0,0.48308149]
[1750276977796,0.23070146,104030.0,104020.0,0.49269465]
[1750276979959,0.23070146,104030.0,104020.0,0.50230717]
[1750276980386,0.03844923,104030.0,104020.0,0.5023067]
[1750276980625,0.03844923,104030.0,104020.0,0.5343067]
[1750276981082,0.03844904,104030.0,104020.0,0.5649067]
[1750276981304,0.24031378,104030.0,104020.0,0.5649067]
[1750276981521,0.24031434,104030.0,104020.0,0.5649067]
[1750276981955,0.02883662,104030.0,104020.0,0.5649067]
[1750276982170,0.22108885,104030.0,104020.0,0.32256136]
[1750276982383,0.2210894,104030.0,104020.0,0.47338824]
[1750276982837,0.54184543,104040.0,104030.0,0.21147689]
[1750276983047,0.54184543,104040.0,104030.0,0.19225223]
[1750276983255,0.00961205,104030.0,104020.0,0.54430029]
[1750276983461,0.02883661,104030.0,104020.0,0.54430047]
[1750276983678,0.02883597,104030.0,104020.0,0.54330047]
[1750276983934,0.02883597,104030.0,104020.0,0.54230047]
[1750276984409,0.0384483,104030.0,104020.0,0.54230047]
[1750276984654,0.04806072,104030.0,104020.0,0.51140047]
[1750276984898,0.04806072,104030.0,104020.0,0.48200047]
[1750276985153,0.24031378,104030.0,104020.0,0.47238759]
[1750276985928,0.03844894,104030.0,104020.0,0.48200047]
[1750276986176,0.03844894,104030.0,104020.0,0.48300047]
[1750276986452,0.04806145,104030.0,104020.0,0.48300047]
[1750276987002,0.03844894,104030.0,104020.0,0.48300047]
[1750276987783,0.24031368,104030.0,104020.0,0.48300047]
[1750276988057,0.04806145,104030.0,104020.0,0.48300047]
[1750276988584,0.24031424,104030.0,104020.0,0.48300121]
[1750276988805,0.24031424,104030.0,104020.0,0.49261419]
[1750276989012,0.24031424,104030.0,104020.0,0.50222707]
[1750276989332,0.24031424,104030.0,104020.0,0.53532707]
[1750276989755,0.0384494,104030.0,104020.0,0.53532707]
[1750276989959,0.24031424,104030.0,104020.0,0.53532707]
[1750276990174,0.04806201,104030.0,104020.0,0.53532707]
[1750276990386,0.24031424,104030.0,104020.0,0.53532707]
[1750276991043,0.2307021,104030.0,104020.0,0.30017489]
[1750276991251,0.2307021,104030.0,104020.0,0.47334814]
[1750276991663,0.2307021,104030.0,104020.0,0.4829613]
[1750276992151,0.02883726,104030.0,104020.0,0.50218725]
[1750276992369,0.02883726,104030.0,104020.0,0.53388725]
[1750276992996,0.22108949,104030.0,104020.0,0.53388725]
[1750276994009,0.2307021,104030.0,104020.0,0.53388725]
[1750276995378,0.00961261,104030.0,104020.0,0.53388725]
[1750276995589,0.21147735,104030.0,104020.0,0.53388725]
[1750276996627,0.22108977,104030.0,104020.0,0.53388725]
[1750276997044,0.02883754,104030.0,104020.0,0.53388725]
[1750276997474,0.22108977,104030.0,104020.0,0.53388725]
[1750276997685,0.2307021,104030.0,104020.0,0.52427437]
[1750276997889,0.2307021,104030.0,104020.0,0.53388735]
[1750276998932,0.06922174,104030.0,104020.0,0.5338867]
[1750276999141,0.06922174,104030.0,104020.0,0.43764494]
[1750276999610,0.00961233,104030.0,104020.0,0.43764494]
[1750276999862,0.21147717,104030.0,104020.0,0.42803206]
[1750277000057,0.22108968,104030.0,104020.0,0.43764494]
[1750277000345,0.22108968,104030.0,104020.0,0.5338867]
[1750277000615,0.2307021,104030.0,104020.0,0.52427382]
[1750277000874,0.22108977,104030.0,104020.0,0.51466131]
[1750277001140,0.22108977,104030.0,104020.0,0.53388717]
[1750277001141,0.01922493,104030.0,104020.0,0.53388717]
[1750277001664,0.21147716,104030.0,104020.0,0.53388717]
[1750277002132,0.56353375,104040.0,104030.0,0.20186474]
[1750277002339,0.59048176,104040.0,104030.0,0.20186474]
[1750277002559,0.59048176,104040.0,104030.0,0.20186484]
[1750277003020,0.01922429,104030.0,104020.0,0.41741816]
[1750277003256,0.01922429,104030.0,104020.0,0.54305992]
[1750277004442,0.02883653,104030.0,104020.0,0.54305992]
[1750277005031,0.02883616,104030.0,104020.0,0.54305992]
[1750277005480,0.02883616,104030.0,104020.0,0.54405992]
[1750277006106,0.01922392,104030.0,104020.0,0.54505992]
[1750277006718,0.00961187,104030.0,104020.0,0.54505992]
[1750277006932,0.01922392,104030.0,104020.0,0.54505992]
[1750277007271,0.00961187,104030.0,104020.0,0.54505992]
[1750277007481,0.01922392,104030.0,104020.0,0.54505992]
[1750277007680,0.02883616,104030.0,104020.0,0.54505992]
[1750277007941,0.01922392,104030.0,104020.0,0.54505992]
[1750277008138,0.02883616,104030.0,104020.0,0.54505992]
[1750277009393,0.01922392,104030.0,104020.0,0.54505992]
[1750277010255,0.00961187,104030.0,104020.0,0.54505992]
[1750277010681,0.38997945,104040.0,104030.0,0.22108922]
[1750277010912,0.34,104040.0,104030.0,0.39164294]
[1750277011573,0.29078994,104060.0,104050.0,0.23065683]
[1750277011574,0.0575769,104060.0,104050.0,0.23065683]
[1750277011822,0.43416169,104060.0,104050.0,0.45775683]
[1750277012067,0.42958179,104060.0,104050.0,0.45775683]
[1750277012319,0.43919144,104060.0,104050.0,0.45775683]
[1750277012559,0.61798456,104060.0,104050.0,0.40733652]
[1750277012781,0.61037546,104060.0,104050.0,0.40733652]
[1750277013010,0.61037546,104060.0,104050.0,0.45014682]
[1750277013438,0.61036568,104060.0,104050.0,0.45014682]
[1750277013682,0.61436568,104060.0,104050.0,0.44053652]
[1750277015159,0.61436568,104060.0,104050.0,0.45014691]
[1750277015367,0.61435787,104060.0,104050.0,0.45014691]
[1750277015572,0.42216107,104060.0,104050.0,0.45975721]
[1750277015780,0.41318664,104060.0,104050.0,0.46936732]
[1750277016414,0.4035769,104060.0,104050.0,0.46936732]
[1750277016838,0.41318591,104060.0,104050.0,0.46936732]
[1750277017053,0.42279556,104060.0,104050.0,0.46936732]
[1750277017279,0.41318591,104060.0,104050.0,0.46936732]
[1750277017487,0.40357635,104060.0,104050.0,0.46936732]
[1750277017705,0.39396698,104060.0,104050.0,0.56560908]
[1750277017912,0.41318564,104060.0,104050.0,0.56560908]
[1750277018119,0.4227951,104060.0,104050.0,0.56560908]
[1750277018338,0.41318554,104060.0,104050.0,0.56560908]
[1750277018546,0.4227951,104060.0,104050.0,0.56560908]
[1750277018992,0.43240475,104060.0,104050.0,0.56560908]
[1750277019832,0.62460219,104060.0,104050.0,0.56560908]
[1750277020046,0.24624431,104060.0,104050.0,0.56560908]
[1750277020249,0.05404751,104060.0,104050.0,0.56560908]
[1750277021101,0.04443777,104060.0,104050.0,0.56560908]
[1750277022130,0.38443777,104060.0,104050.0,0.56560908]
[1750277022604,0.39404751,104060.0,104050.0,0.56560908]
[1750277023330,0.43401774,104060.0,104050.0,0.56560908]
[1750277023537,0.43189774,104060.0,104050.0,0.56560908]
[1750277024370,0.62409454,104060.0,104050.0,0.56560908]
[1750277024778,0.43889924,104060.0,104050.0,0.55599897]
[1750277025197,0.43889924,104060.0,104050.0,0.56560917]
[1750277025408,0.24670235,104060.0,104050.0,0.56560852]
[1750277025706,0.25631154,104060.0,104050.0,0.56560852]
[1750277025939,0.25631098,104060.0,104050.0,0.56560852]
[1750277026123,0.26592045,104060.0,104050.0,0.56560852]
[1750277026542,0.2755301,104060.0,104050.0,0.56560852]
[1750277027120,0.47733664,104060.0,104050.0,0.56560852]
[1750277027322,0.28513984,104060.0,104050.0,0.56560852]
[1750277028439,0.26592045,104060.0,104050.0,0.56560852]
[1750277028801,0.2755301,104060.0,104050.0,0.56560852]
[1750277032038,0.47733664,104060.0,104050.0,0.56560852]
[1750277032259,0.28513984,104060.0,104050.0,0.56560852]
[1750277033779,0.2467017,104060.0,104050.0,0.56560852]
[1750277033998,0.03997023,104060.0,104050.0,0.56560852]
[1750277034443,0.009609,104060.0,104050.0,0.54638737]
[1750277034655,0.03954583,104060.0,104050.0,0.54638737]
[1750277035098,5e-05,104070.0,104060.0,0.2834252]
[1750277035315,5e-05,104070.0,104060.0,0.37966696]
[1750277035532,5e-05,104070.0,104060.0,0.39420781]
[1750277036383,5e-05,104070.0,104060.0,0.8861767]
[1750277037021,5e-05,104070.0,104060.0,0.8891767]
[1750277037238,5e-05,104070.0,104060.0,1.18882477]
[1750277037687,5e-05,104070.0,104060.0,0.8891767]
[1750277038544,5e-05,104090.0,104060.0,0.8891767]
[1750277038754,0.60875855,104110.0,104100.0,0.22094055]
[1750277038969,0.62796853,104110.0,104100.0,0.38402073]
[1750277039180,0.65745914,104110.0,104100.0,0.38402073]
[1750277039962,0.65745914,104110.0,104100.0,0.3936753]
[1750277040317,0.64785429,104110.0,104100.0,0.36485798]
[1750277040522,0.64785429,104110.0,104100.0,0.37446403]
[1750277040725,0.57120024,104110.0,104100.0,0.38406999]
[1750277040925,0.57420024,104110.0,104100.0,0.39367586]
[1750277041149,0.57620024,104110.0,104100.0,0.39367586]
[1750277041562,0.57620024,104110.0,104100.0,0.40328154]
[1750277041768,0.61490798,104110.0,104100.0,0.40328154]
[1750277042189,0.61490798,104110.0,104100.0,4.889e-05]
[1750277042424,0.64800798,104110.0,104100.0,0.35521184]
[1750277042657,0.64800798,104110.0,104100.0,4.889e-05]
[1750277042876,0.02882009,104090.0,104080.0,0.21132889]
[1750277043074,0.2209615,104090.0,104080.0,0.2884501]
[1750277043274,0.23056857,104090.0,104080.0,0.30766552]
[1750277043478,0.23056857,104090.0,104080.0,0.47070552]
[1750277044079,0.32117545,104090.0,104080.0,0.00109442]
[1750277044509,0.32117545,104090.0,104080.0,0.00209442]
[1750277045024,0.3390526,104090.0,104080.0,0.00209442]
[1750277045253,0.3390526,104090.0,104080.0,0.00109442]
[1750277045498,0.3390529,104090.0,104080.0,0.00109442]
[1750277046232,0.21139589,104070.0,104060.0,0.35519615]
[1750277046468,0.21139589,104070.0,104060.0,0.35524508]
[1750277046700,0.21139589,104070.0,104060.0,0.36485492]
[1750277047390,0.21139589,104070.0,104060.0,0.37446466]
[1750277047626,0.019217,104070.0,104060.0,0.40329278]
[1750277047883,0.019217,104070.0,104060.0,0.40629278]
[1750277047884,0.22100425,104070.0,104060.0,0.40629278]
[1750277048126,0.02882573,104070.0,104060.0,0.40629278]
[1750277048582,0.019217,104070.0,104060.0,0.40629278]
[1750277048819,0.02882573,104070.0,104060.0,0.40629278]
[1750277049021,0.01921644,104070.0,104060.0,0.40629278]
[1750277049231,0.02882489,104070.0,104060.0,0.40629278]
[1750277049473,0.03843353,104070.0,104060.0,0.40629278]
[1750277049684,0.02882489,104070.0,104060.0,0.50253454]
[1750277049924,0.04804216,104070.0,104060.0,0.56713454]
[1750277050151,0.0480429,104070.0,104060.0,0.56713454]
[1750277050398,0.02882535,104070.0,104060.0,0.53413454]
[1750277050614,0.02882535,104070.0,104060.0,0.56633454]
[1750277050853,0.01921681,104070.0,104060.0,0.56633454]
[1750277051333,0.01921644,104070.0,104060.0,0.56629454]
[1750277051557,0.02882498,104070.0,104060.0,0.56629454]
[1750277052230,0.03843371,104070.0,104060.0,0.56629454]
[1750277052561,0.02882498,104070.0,104060.0,0.56629454]
[1750277053703,0.01921635,104070.0,104060.0,0.56629454]
[1750277053928,0.56099979,104080.0,104070.0,0.21139561]
[1750277054580,0.56099979,104080.0,104070.0,0.22100425]
[1750277054811,0.35921487,104080.0,104070.0,0.23061252]
[1750277055050,0.37843001,104080.0,104070.0,0.23061252]
[1750277055278,0.36882221,104080.0,104070.0,0.23061252]
[1750277055747,0.36882221,104080.0,104070.0,0.22100425]
[1750277055964,0.36882221,104080.0,104070.0,0.23061261]
[1750277056199,0.34960744,104080.0,104070.0,0.39756264]
[1750277056456,0.36982222,104080.0,104070.0,0.39756264]
[1750277057704,0.37943002,104080.0,104070.0,0.39756264]
[1750277057908,0.36982222,104080.0,104070.0,0.39756264]
[1750277058120,0.37943012,104080.0,104070.0,0.36726264]
[1750277058543,0.37943002,104080.0,104070.0,0.36726264]
[1750277058969,0.36982222,104080.0,104070.0,0.36726264]
[1750277059181,0.37943002,104080.0,104070.0,0.36726264]
[1750277059401,0.36982222,104080.0,104070.0,0.36726264]
[1750277059620,0.37943002,104080.0,104070.0,0.36726264]
[1750277060289,0.37943002,104080.0,104070.0,0.35765437]
[1750277060500,0.38903801,104080.0,104070.0,0.35765437]
[1750277060709,0.37943002,104080.0,104070.0,0.36726264]
[1750277061382,0.37943002,104080.0,104070.0,0.33646264]
[1750277061647,0.38903792,104080.0,104070.0,0.33646264]
[1750277062529,0.58119779,104080.0,104070.0,0.32685437]
[1750277062772,0.20178707,104070.0,104060.0,0.20185547]
[1750277063000,0.02882784,104060.0,104050.0,0.72104635]
[1750277063221,0.03843749,104060.0,104050.0,0.98978753]
[1750277063468,0.02882784,104060.0,104050.0,0.98978753]
[1750277063679,0.03843749,104060.0,104050.0,0.98978753]
[1750277063930,0.24024403,104060.0,104050.0,0.98978753]
[1750277064178,0.04804723,104060.0,104050.0,0.98978753]
[1750277065314,0.24024403,104060.0,104050.0,0.98978753]
[1750277065589,0.04804723,104060.0,104050.0,0.98978753]
[1750277066055,0.24024403,104060.0,104050.0,0.99278753]
[1750277066273,0.24024487,104060.0,104050.0,0.99278753]
[1750277066931,0.24024487,104060.0,104050.0,0.99578753]
[1750277067443,0.23063513,104060.0,104050.0,0.82333742]
[1750277067682,0.23063513,104060.0,104050.0,1.02714762]
[1750277067991,0.03843833,104060.0,104050.0,1.03675773]
[1750277068199,0.23063513,104060.0,104050.0,1.06815773]
[1750277069261,0.23063513,104060.0,104050.0,1.05854762]
[1750277069472,0.23063513,104060.0,104050.0,0.86691655]
[1750277069696,0.23063513,104060.0,104050.0,1.03932703]
[1750277069918,0.56102585,104060.0,104050.0,0.50604894]
[1750277070146,0.54186465,104030.0,104020.0,0.0001]
[1750277070377,0.55151746,104010.0,104000.0,0.0001]
[1750277070594,0.55151746,104010.0,104000.0,0.09634176]
[1750277070815,0.59067535,104010.0,104000.0,0.09681417]
[1750277071065,0.59067535,104010.0,104000.0,0.00057241]
[1750277071270,0.65131081,104010.0,104000.0,0.16337241]
[1750277071940,0.65131081,104010.0,104000.0,0.00057241]
[1750277072586,0.65331081,104010.0,104000.0,0.00057241]
[1750277073023,0.65131081,104010.0,104000.0,0.00057241]
[1750277073236,0.65631081,104010.0,104000.0,0.00057241]
[1750277073449,0.68901081,104010.0,104000.0,0.00057241]
[1750277074995,0.71790181,104010.0,104000.0,0.00057241]
[1750277075675,0.88070181,104010.0,104000.0,0.00057241]
[1750277075914,0.55155814,103990.0,103980.0,0.0001]
[1750277076130,0.55155814,103990.0,103980.0,0.09639069]
[1750277076564,0.34,103990.0,103980.0,0.38880318]
[1750277076786,0.34,103990.0,103980.0,0.55156318]
[1750277077654,0.34,103990.0,103980.0,0.55256318]
[1750277077871,0.34961556,103990.0,103980.0,0.55256318]
[1750277078091,0.34961547,103990.0,103980.0,0.55156318]
[1750277078311,0.34,103990.0,103980.0,0.55156318]
[1750277078522,0.34,103990.0,103980.0,0.55356318]
[1750277078754,0.28907355,104010.0,103980.0,0.82928429]
[1750277078755,0.09678435,104010.0,103980.0,0.82928429]
[1750277078970,0.03915789,104010.0,104000.0,0.28685272]
[1750277079201,0.03915789,104010.0,104000.0,0.54585448]
[1750277079419,0.59958643,104030.0,104020.0,0.19227071]
[1750277079635,0.59958699,104030.0,104020.0,0.35503071]
[1750277079871,0.62033759,104030.0,104020.0,0.35503071]
[1750277080098,0.31213759,104030.0,104020.0,0.35503071]
[1750277080337,0.31213759,104030.0,104020.0,0.19227071]
[1750277080554,0.31213759,104030.0,104020.0,0.35503071]
[1750277080772,0.64299764,104030.0,104020.0,0.16276]
[1750277080986,0.64299764,104030.0,104020.0,0.35503071]
[1750277081643,0.64699764,104030.0,104020.0,0.35503071]
[1750277081857,0.64699764,104030.0,104020.0,0.16276]
[1750277082069,0.65299764,104030.0,104020.0,0.35503071]
[1750277082290,0.64299764,104030.0,104020.0,0.35503071]